{"text_format":"3","workbook":"xlsx","n_sheets":8,"sheets":["Инструкции","Постоянни клиенти","Случайни познати","Потенциални клиенти","План за работа в мрежа за Трм1","План за работа в мрежа за Трм2","План за работа в мрежа за Трм3","План за работа в мрежа за Трм4"],"not_rendered":{"defined_names":7},"read":"whole","date_system":"1900"}

{"sheet":"Инструкции","index":0,"n_rows":17,"n_cols":5,"rows_kept":17,"merged":[[0,0,0,2],[1,1,1,6],[2,1,2,6],[3,1,3,6],[4,1,4,6],[5,1,5,6],[6,1,6,6],[7,1,7,6],[8,1,8,6],[9,1,9,6],[10,1,10,6],[11,1,11,6]]}
["Проследяване на връзките",null,null,"Инструкции"]
[null,"1. Решете в коя категория попада вашият контакт:"]
[null,"• Рутинни/редовни – хора, с които искате да поддържате връзка постоянно"]
[null,"• Случайни/познати – хора, с които искате да се свързвате няколко пъти в годината"]
[null,"• Потенциални клиенти – хора/фирми, които искате да запазите в архива си, за да се свържете с тях в удачния момент"]
[null,"2. Отваряне на съответния раздел на работен лист."]
[null,"3. Въведете информацията за тях (за да създадете нов ред в клетка, натиснете Alt+Enter в Windows или Option+Return на Mac)."]
[null,"Проверете тук за инструкции за нов ред за мобилните приложения на Excel."]
[null,"4. В колонатаДата на последващо действие, изтрийте примерната дата/формула, въведете кога искате да се свържете с тях, \nи след това натиснете ENTER."]
[null,"5. В колоната Дата на последващо действие, ще се показва в червено, когато датата в много близо, в жълто, когато приближава и зелено, когато имате достатъчно време."]
[null,"6. С наближаване на датата за последващо действие цветът ще се променя по съответния начин."]
[null,"7. След като се свържете с вашия контакт, въведете \"ДА\" в колонатаГотово?. Това ще направи датата да бъде в сиво. "]
[null,"8. Ако искате да се свържете с тях отново, заместете \"ДА\" с \"НЕ\" и въведете нова Дата на последващо действие."]
[null,null,"Червено","Жълто","Зелено"]
[null,"Рутинни/редовни","след 1 – 3 дена","след 4 – 7 дена","след 8 – 14+ дена"]
[null,"Случайни/познати","след 1 – 7 дена","след 8 – 45 дена","след 46 – 90+ дена"]
[null,"Потенциални клиенти","след 1 – 14 дена","след 15 – 60 дена","след 60 – 120+ дена"]

{"sheet":"Постоянни клиенти","index":1,"n_rows":7,"n_cols":8,"rows_kept":7,"merged":[[0,0,0,2]]}
["Проследяване на връзките",null,null,"Рутинни/редовни"]
[]
["Име","Компания","Информация за връзка","Къде се срещнахме","Бележки","Дата на последващо действие","Готово","Бележки от разговора"]
["Гарт Форт","Adventure Works","Ръководител проект\ngarth@adventure-works.com\n(234) 555-0134\nadventure-works.com\nlinkedin.com/in/garth-fort","Търговско изложение 2010","Попитайте за дъщеря му Санди и как върви ремонта. Не понася големи групи и лютива храна.",{"$f":"TODAY()+8","v":"2021-07-23"},"НЕ"]
["Име","Име на фирмата","Длъжност\nИмейл адрес\nТелефонен номер\nУеб сайт\nВръзки към профили в социални мрежи\n","Място","Въведете бележките, които искате да запомните за този човек; където сте се запознали, за какво сте говорили, за това, което искате да говорите следващия път в разговора си, и т.н.",{"$f":"TODAY()-3","v":"2021-07-12"},"ДА"]
["Име","Име на фирма","Длъжност\nИмейл адрес\nТелефонен номер\nУеб сайт\nВръзки към профили в социални мрежи\n","Място","Въведете бележките, които искате да запомните за този човек; където сте се запознали, за какво сте говорили, за това, което искате да говорите следващия път в разговора си, и т.н.",{"$f":"TODAY()+-3","v":"2021-07-12"},"НЕ"]
["Име","Име на фирмата","Длъжност\nИмейл адрес\nТелефонен номер\nУеб сайт\nВръзки към профили в социални мрежи\n","Място","Въведете бележките, които искате да запомните за този човек; където сте се запознали, за какво сте говорили, за това, което искате да говорите следващия път в разговора си, и т.н.",{"$f":"TODAY()+6","v":"2021-07-21"},"НЕ"]

{"sheet":"Случайни познати","index":2,"n_rows":7,"n_cols":8,"rows_kept":7,"merged":[[0,0,0,2]]}
["Проследяване на връзките",null,null,"Случайни/познати"]
[]
["Име","Компания","Информация за връзка","Къде се срещнахме","Бележки","Дата на последващо действие","Готово","Бележки от разговора"]
["Гарт Форт","Adventure Works","Диспечер на ресурси\ngarth@adventure-works.com\n(434) 555-0123\nwww.adventure-works.com\nlinkedin.com/in/garth-fort","Ваканция във Вермонт 2016","Удобно както за контакт за наемане, така и за маркетингови въпроси",{"$f":"TODAY()+90","v":"2021-10-13"},"НЕ"]
["Име","Име на фирмата","Длъжност\nИмейл адрес\nТелефонен номер\nУеб сайт\nВръзки към профили в социални мрежи\n","Място","Въведете бележките, които искате да запомните за този човек; където сте се запознали, за какво сте говорили, за това, което искате да говорите следващия път в разговора си, и т.н.",{"$f":"TODAY()-3","v":"2021-07-12"},"ДА"]
["Име","Име на фирма","Длъжност\nИмейл адрес\nТелефонен номер\nУеб сайт\nВръзки към профили в социални мрежи\n","Място","Въведете бележките, които искате да запомните за този човек; където сте се запознали, за какво сте говорили, за това, което искате да говорите следващия път в разговора си, и т.н.",{"$f":"TODAY()+-3","v":"2021-07-12"},"НЕ"]
["Име","Име на фирмата","Длъжност\nИмейл адрес\nТелефонен номер\nУеб сайт\nВръзки към профили в социални мрежи\n","Място","Въведете бележките, които искате да запомните за този човек; където сте се запознали, за какво сте говорили, за това, което искате да говорите следващия път в разговора си, и т.н.",{"$f":"TODAY()+40","v":"2021-08-24"},"НЕ"]

{"sheet":"Потенциални клиенти","index":3,"n_rows":7,"n_cols":8,"rows_kept":7,"merged":[[0,0,0,2]]}
["Проследяване на връзките",null,null,"Потенциални клиенти"]
[]
["Име","Компания","Информация за връзка","Къде се срещнахме","Бележки","Дата на последващо действие","Готово","Бележки от разговора"]
["Гарт Форт","Свободна практика","Дизайнер\nime@example.com\n425-555-0123\nexample.com\nlinkedin.com/in/garth-fort","Дипломиране на сина 2016","На скоро дипломиран – много квалифициран. Може да е полезно за бъдещи клиенти.",{"$f":"TODAY()+89","v":"2021-10-12"},"НЕ"]
["Име","Име на фирмата","Длъжност\nИмейл адрес\nТелефонен номер\nУеб сайт\nВръзки към профили в социални мрежи\n","Място","Въведете бележките, които искате да запомните за този човек; където сте се запознали, за какво сте говорили, за това, което искате да говорите следващия път в разговора си, и т.н.",{"$f":"TODAY()-3","v":"2021-07-12"},"ДА"]
["Име","Име на фирма","Длъжност\nИмейл адрес\nТелефонен номер\nУеб сайт\nВръзки към профили в социални мрежи\n","Място","Въведете бележките, които искате да запомните за този човек; където сте се запознали, за какво сте говорили, за това, което искате да говорите следващия път в разговора си, и т.н.",{"$f":"TODAY()+-3","v":"2021-07-12"},"НЕ"]
["Име","Име на фирмата","Длъжност\nИмейл адрес\nТелефонен номер\nУеб сайт\nВръзки към профили в социални мрежи\n","Място","Въведете бележките, които искате да запомните за този човек; където сте се запознали, за какво сте говорили, за това, което искате да говорите следващия път в разговора си, и т.н.",{"$f":"TODAY()+30","v":"2021-08-14"},"НЕ"]

{"sheet":"План за работа в мрежа за Трм1","index":4,"n_rows":20,"n_cols":6,"rows_kept":20,"merged":[[0,0,0,3],[2,0,2,3],[4,0,4,3],[14,5,17,5],[18,0,18,3]]}
["План за разширяване на мрежата"]
["Инструкции"]
["Напишете как планирате да разширите мрежата си през това тримесечие (т.е. да провеждате повече телефонни разговори, да пътувате повече и т.н.). След това всеки път, когато получите нов контакт, променете действителния брой \"Осъществени контакти\", за да проследявате и да видите колко близо сте до целта си."]
[]
["Как планирам да разширя мрежата си това тримесечие"]
["1. Провеждане на още телефонни разговори"]
["2. Повече пътуване"]
[]
[]
[]
[]
[]
[]
["Цел на контактите за тримесечие","Краен срок","Действително осъществени тримесечни контакти","Резултати"]
[20,{"$f":"TODAY()","v":"2021-07-15"},12,{"$f":"IF(tblGoals[[#This Row],[Цел на контактите за тримесечие]]>0,tblGoals[[#This Row],[Действително осъществени тримесечни контакти]]/tblGoals[[#This Row],[Цел на контактите за тримесечие]],\"\")","v":{"v":0.6,"d":"60%"}},null,"0% - 25%\n26% - 50%\n51% - 75%\n76% - 100%\n\nЦветът се променя според на достигнатия процент"]
[{"$nulls":3},{"$f":"IF(tblGoals[[#This Row],[Цел на контактите за тримесечие]]>0,tblGoals[[#This Row],[Действително осъществени тримесечни контакти]]/tblGoals[[#This Row],[Цел на контактите за тримесечие]],\"\")","v":""}]
[{"$nulls":3},{"$f":"IF(tblGoals[[#This Row],[Цел на контактите за тримесечие]]>0,tblGoals[[#This Row],[Действително осъществени тримесечни контакти]]/tblGoals[[#This Row],[Цел на контактите за тримесечие]],\"\")","v":""}]
[]
["Отражение върху резултата/бележките за подобрение"]
["Приближаване. Вместо това да се опитам да се обадя по време на обяд."]

{"sheet":"План за работа в мрежа за Трм2","index":5,"n_rows":20,"n_cols":6,"rows_kept":20,"merged":[[0,0,0,3],[2,0,2,3],[4,0,4,3],[14,5,17,5],[18,0,18,3]]}
["План за разширяване на мрежата"]
["Инструкции"]
["Напишете как планирате да разширите мрежата си през това тримесечие (т.е. да провеждате повече телефонни разговори, да пътувате повече и т.н.). След това всеки път, когато получите нов контакт, променете действителния брой \"Осъществени контакти\", за да проследявате и да видите колко близо сте до целта си."]
[]
["Как планирам да разширя мрежата си това тримесечие"]
["1. Провеждане на още телефонни разговори"]
["2. Повече пътуване"]
[]
[]
[]
[]
[]
[]
["Цел на контактите за тримесечие","Краен срок","Действително осъществени тримесечни контакти","Резултати"]
[20,{"$f":"TODAY()","v":"2021-07-15"},12,{"$f":"IF(tblGoals3[[#This Row],[Цел на контактите за тримесечие]]>0,tblGoals3[[#This Row],[Действително осъществени тримесечни контакти]]/tblGoals3[[#This Row],[Цел на контактите за тримесечие]],\"\")","v":{"v":0.6,"d":"60%"}},null,"0% - 25%\n26% - 50%\n51% - 75%\n76% - 100%\n\nЦветът се променя според на достигнатия процент"]
[{"$nulls":3},{"$f":"IF(tblGoals3[[#This Row],[Цел на контактите за тримесечие]]>0,tblGoals3[[#This Row],[Действително осъществени тримесечни контакти]]/tblGoals3[[#This Row],[Цел на контактите за тримесечие]],\"\")","v":""}]
[{"$nulls":3},{"$f":"IF(tblGoals3[[#This Row],[Цел на контактите за тримесечие]]>0,tblGoals3[[#This Row],[Действително осъществени тримесечни контакти]]/tblGoals3[[#This Row],[Цел на контактите за тримесечие]],\"\")","v":""}]
[]
["Отражение върху резултата/бележките за подобрение"]
["Приближаване. Вместо това да се опитам да се обадя по време на обяд."]

{"sheet":"План за работа в мрежа за Трм3","index":6,"n_rows":20,"n_cols":6,"rows_kept":20,"merged":[[0,0,0,3],[2,0,2,3],[4,0,4,3],[14,5,17,5],[18,0,18,3]]}
["План за разширяване на мрежата"]
["Инструкции"]
["Напишете как планирате да разширите мрежата си през това тримесечие (т.е. да провеждате повече телефонни разговори, да пътувате повече и т.н.). След това всеки път, когато получите нов контакт, променете действителния брой \"Осъществени контакти\", за да проследявате и да видите колко близо сте до целта си."]
[]
["Как планирам да разширя мрежата си това тримесечие"]
["1. Провеждане на още телефонни разговори"]
["2. Повече пътуване"]
[]
[]
[]
[]
[]
[]
["Цел на контактите за тримесечие","Краен срок","Действително осъществени тримесечни контакти","Резултати"]
[20,{"$f":"TODAY()","v":"2021-07-15"},12,{"$f":"IF(tblGoals34[[#This Row],[Цел на контактите за тримесечие]]>0,tblGoals34[[#This Row],[Действително осъществени тримесечни контакти]]/tblGoals34[[#This Row],[Цел на контактите за тримесечие]],\"\")","v":{"v":0.6,"d":"60%"}},null,"0% - 25%\n26% - 50%\n51% - 75%\n76% - 100%\n\nЦветът се променя според на достигнатия процент"]
[{"$nulls":3},{"$f":"IF(tblGoals34[[#This Row],[Цел на контактите за тримесечие]]>0,tblGoals34[[#This Row],[Действително осъществени тримесечни контакти]]/tblGoals34[[#This Row],[Цел на контактите за тримесечие]],\"\")","v":""}]
[{"$nulls":3},{"$f":"IF(tblGoals34[[#This Row],[Цел на контактите за тримесечие]]>0,tblGoals34[[#This Row],[Действително осъществени тримесечни контакти]]/tblGoals34[[#This Row],[Цел на контактите за тримесечие]],\"\")","v":""}]
[]
["Отражение върху резултата/бележките за подобрение"]
["Приближаване. Вместо това да се опитам да се обадя по време на обяд."]

{"sheet":"План за работа в мрежа за Трм4","index":7,"n_rows":20,"n_cols":6,"rows_kept":20,"merged":[[0,0,0,3],[2,0,2,3],[4,0,4,3],[14,5,17,5],[18,0,18,3]]}
["План за разширяване на мрежата"]
["Инструкции"]
["Напишете как планирате да разширите мрежата си през това тримесечие (т.е. да провеждате повече телефонни разговори, да пътувате повече и т.н.). След това всеки път, когато получите нов контакт, променете действителния брой \"Осъществени контакти\", за да проследявате и да видите колко близо сте до целта си."]
[]
["Как планирам да разширя мрежата си това тримесечие"]
["1. Провеждане на още телефонни разговори"]
["2. Повече пътуване"]
[]
[]
[]
[]
[]
[]
["Цел на контактите за тримесечие","Краен срок","Действително осъществени тримесечни контакти","Резултати"]
[20,{"$f":"TODAY()","v":"2021-07-15"},12,{"$f":"IF(tblGoals348[[#This Row],[Цел на контактите за тримесечие]]>0,tblGoals348[[#This Row],[Действително осъществени тримесечни контакти]]/tblGoals348[[#This Row],[Цел на контактите за тримесечие]],\"\")","v":{"v":0.6,"d":"60%"}},null,"0% - 25%\n26% - 50%\n51% - 75%\n76% - 100%\n\nЦветът се променя според на достигнатия процент"]
[{"$nulls":3},{"$f":"IF(tblGoals348[[#This Row],[Цел на контактите за тримесечие]]>0,tblGoals348[[#This Row],[Действително осъществени тримесечни контакти]]/tblGoals348[[#This Row],[Цел на контактите за тримесечие]],\"\")","v":""}]
[{"$nulls":3},{"$f":"IF(tblGoals348[[#This Row],[Цел на контактите за тримесечие]]>0,tblGoals348[[#This Row],[Действително осъществени тримесечни контакти]]/tblGoals348[[#This Row],[Цел на контактите за тримесечие]],\"\")","v":""}]
[]
["Отражение върху резултата/бележките за подобрение"]
["Приближаване. Вместо това да се опитам да се обадя по време на обяд."]